Cogmind - Beta 11.1 @@@ ROGUE MODE // 2022.04.27 @ 00:43:57 Player: Olga Result: Destroyed by G-67 Veteran with Field Laser Performance ------------- Evolutions (7) 3500 Regions Visited (14) 2800 Robots Destroyed (75) 375 Value Destroyed (2450) 2450 Prototype IDs (37) 740 Alien Tech Used (0) 0 Bonus (3634) 3634 TOTAL SCORE: 13499 Bonus ------- Triggered Max Security 1000 High Alert Combat Kills 147 Follower Combat Kills 189 Aligned with FarCom 300 Acquired SGEMP 2000 Friendly Fire -2 Cogmind --------- Core Integrity 0/1300 Matter 50/300 Energy 100/100 System Corruption 2% Temperature Cool (27) Movement Core (50) Location -3/Testing Parts ------- > --- POWER (2) -------- (None) > --- PROPULSION (6) --- (None) > --- UTILITY (11) ----- (None) > --- WEAPON (2) ------- (None) > --- INVENTORY (5) ---- Energy Mantle Improved Component Analysis Suite Mass Driver Peak State ------------ > --- POWER ------------ Light Antimatter Reactor Micro Antimatter Reactor > --- PROPULSION ------- Improved VTOL Module Improved VTOL Module Improved VTOL Module Improved VTOL Module Xenon Bombardment Thruster Field Propulsion Drive > --- UTILITY ---------- Power Amplifier Advanced Heat Sink Advanced Heat Sink Lightpack 2.0 Gravity Neutralizer Advanced Reaction Control System Improved Phase Shifter Point Defense Array Hacking Suite > --- WEAPON ----------- Linear Accelerator > --- INVENTORY -------- Cooled Ion Engine Heavy Deuterium Engine Fusion Compressor Gravmag Array Gravmag Array Antigrav System Linear Gravjet Improved Antigrav System Improved Linear Gravjet VTOL Module VTOL Module Improved VTOL Module Compact Battery Weight Redist. System Advanced Weight Redist. System Gravity Neutralizer Terrain Scan Processor Improved Terrain Scan Processor Matter Filter Matter Filter Matter Filter Graphene Brace Component Analysis Suite Mini Drone Bay Improved Lightning Gun Heavy Phase Cannon Heavy Assault Rifle Gauss Rifle Precision Assault Rifle Mini Assault Cannon Mini Assault Cannon Mini Assault Cannon Mini Assault Cannon Magnetic Acceleration Cannon Mass Driver Mass Driver Enhanced Gauss Cannon Great Maul [Rating: 142] Favorites ----------- Power Improved Ion Engine Engine Improved Ion Engine Power Core Light Nuclear Core Reactor Light Antimatter Reactor Propulsion Light Treads Treads Light Treads Leg Aluminum Leg Hover Unit Improved Hover Unit Flight Unit Improved VTOL Module Utility Structural Scanner Device Structural Scanner Storage Large Storage Unit Processor Visual Processing Unit Hackware Hacking Suite Protection Hardened Light Armor Plating Weapon Heavy Assault Rifle Energy Gun Small Laser Energy Cannon Heavy Phase Cannon Ballistic Gun Heavy Assault Rifle Ballistic Cannon Mini Assault Cannon Launcher Mini Grenade Launcher Impact Weapon Great Maul Build | -11 -10 -10 -9 -9 -9 -8 -8 -8 -7 -6 -5 -4 -3 -3 ------- Run | Scr Mat Min Mat Min Exi Min Mat Sto Fac Fac Fac Fac Res Tes Slots Evolved 14 | . . . 2 . . . 2 . 2 2 2 2 2 . Power 1 | . . . . . . . . . . 1 . . . . Propulsion 4 | . . . 1 . . . 1 . . . 1 1 . . Utility 9 | . . . 1 . . . 1 . 2 1 1 1 2 . Weapon . | . . . . . . . . . . . . . . . Parts Attached 138 | . 4 14 9 3 . 6 23 18 8 10 8 17 9 9 Power 24 | . . 2 . . . 1 3 1 1 4 2 3 4 3 Engine 10 | . . 2 . . . . 2 . 1 2 2 1 . . Core 7 | . . . . . . 1 1 1 . 2 . 2 . . Reactor 7 | . . . . . . . . . . . . . 4 3 Propulsion 44 | . 1 6 5 . . 4 7 8 4 1 2 1 . 5 Treads 12 | . . . 3 . . 1 7 1 . . . . . . Leg 12 | . 1 6 2 . . 3 . . . . . . . . Wheel . | . . . . . . . . . . . . . . . Hover 4 | . . . . . . . . 2 . . . . . 2 Flight 16 | . . . . . . . . 5 4 1 2 1 . 3 Utility 39 | . 1 1 1 1 . 1 9 4 3 4 3 6 4 1 Device 25 | . 1 . . . . . 2 2 2 4 3 6 4 1 Storage 3 | . . 1 . 1 . . . 1 . . . . . . Processor 3 | . . . . . . . 2 1 . . . . . . Hackware 1 | . . . . . . . . . 1 . . . . . Protection 7 | . . . 1 . . 1 5 . . . . . . . Artifact . | . . . . . . . . . . . . . . . Weapon 31 | . 2 5 3 2 . . 4 5 . 1 1 7 1 . Energy Gun 3 | . . . . . . . 1 2 . . . . . . Energy Cannon 1 | . . . . . . . . . . . . 1 . . Ballistic Gun 9 | . 2 2 2 1 . . 2 . . . . . . . Ballistic Cannon 9 | . . . . . . . . 2 . . 1 5 1 . Launcher 6 | . . 3 1 1 . . 1 . . . . . . . Special Weapon . | . . . . . . . . . . . . . . . Impact Weapon 3 | . . . . . . . . 1 . 1 . 1 . . Slashing Weapon . | . . . . . . . . . . . . . . . Piercing Weapon . | . . . . . . . . . . . . . . . Special Melee Weapon . | . . . . . . . . . . . . . . . Unidentified Prototypes 4 | . . . . . . . . 1 2 . . . . 1 Parts Lost 31 | . . 1 . . . 1 4 8 . . . 2 . 15 Power 3 | . . . . . . 1 1 . . . . . . 1 Propulsion 14 | . . 1 . . . . . 5 . . . . . 8 Utility 11 | . . . . . . . 2 1 . . . 2 . 6 Weapon 3 | . . . . . . . 1 2 . . . . . . Highest Loss Streak 10 | . . 1 . . . 1 2 2 . . . 2 . 10 To Critical Strikes . | . . . . . . . . . . . . . . . Average Slot Usage (%) 89 | . 89 99 100 100 100 99 90 81 75 73 86 83 80 56 Engine 7 | . 14 14 11 11 11 4 3 3 7 3 10 5 . . Core 2 | . . . . . . 5 5 5 . 5 . 4 1 . Treads 14 | . . . 27 33 33 22 13 22 . . . . . . Leg 8 | . 28 28 5 . . 10 17 . . . . . . . Hover 1 | . . . . . . . . 7 . . . . . . Flight 7 | . . . . . . . . 4 30 26 29 31 28 18 Device 12 | . 4 14 11 11 11 11 5 5 14 17 22 24 31 22 Storage 9 | . 14 14 11 11 11 11 9 9 7 6 5 5 4 3 Processor 1 | . . . . . . . 8 3 . . . . . . Hackware 1 | . . . . . . . . . 6 6 5 5 4 3 Protection 5 | . . . 11 11 11 11 10 3 . . . . . . Energy Gun 1 | . 14 . . . . . 2 2 . . . . . . Ballistic Gun 10 | . 13 13 15 14 22 22 12 5 . . . . . . Ballistic Cannon 1 | . . . . . . . . 7 7 2 4 3 1 . Launcher 3 | . . 14 6 7 . . 3 1 . . . . . . Naked Turns 9 | . . . . . . . . . . . . . . 9 Heaviest Build 58 | 13 13 23 30 40 39 39 58 58 19 21 38 45 45 40 Greatest Support 86 | 20 20 20 60 60 60 62 86 86 20 21 40 45 45 45 Greatest Overweight (x) 1 | . . 1 1 . . 1 1 1 . . . . . 1 Average Overweight (x) . | . . . . . . . . . . . . . . . Largest Inventory Capacity 40 | . 8 10 10 15 15 15 15 40 40 40 40 40 40 40 Average Capacity 21 | . 8 8 10 13 15 15 15 29 40 40 40 40 40 38 Most Carried 40 | . 8 10 10 12 15 15 15 27 39 40 40 40 40 40 Average Carried 18 | . 7 8 9 11 13 14 14 17 32 39 38 39 39 37 Final Capacity 40 | 8 8 10 10 15 15 15 15 40 40 40 40 40 40 5 Final Carried 40 | 6 8 10 10 12 15 15 15 27 39 40 40 40 40 3 Class Distribution -------------------- 45% | Mutant 16% | Scavenger-Mutant 16% | Hauler-Sprinter 8% | Hauler-Scout 6% | Hauler-Mutant 5% | Scavenger-Skirmisher Dominant Class ---------------- Mutant | -10/Materials Mutant | -10/Mines Mutant | -9/Materials Mutant | -9/Mines Mutant | -9/Exiles Mutant | -8/Mines Scavenger-Mutant | -8/Materials Hauler-Mutant | -8/Storage Hauler-Scout | -7/Factory Hauler-Scout | -6/Factory Hauler-Sprinter | -5/Factory Hauler-Scout | -4/Factory Hauler-Sprinter | -3/Research Hauler-Sprinter | -3/Testing Resources | -11 -10 -10 -9 -9 -9 -8 -8 -8 -7 -6 -5 -4 -3 -3 ----------- Run | Scr Mat Min Mat Min Exi Min Mat Sto Fac Fac Fac Fac Res Tes Matter Collected 2401 | 200 27 359 211 42 . 190 430 515 . . 277 85 28 37 Remotely . | . . . . . . . . . . . . . . . Salvage Created 2298 | . 74 452 68 68 . 202 553 747 . . . 134 . . Parts 150 | . 6 28 5 6 . 16 37 40 . . . 12 . . Haulers Intercepted 2 | . . . . . . . . 2 . . . . . . Recyclers Shooed 1 | . . 1 . . . . . . . . . . . . Parts Field Recycled . | . . . . . . . . . . . . . . . Retrieved Matter . | . . . . . . . . . . . . . . . Parts Self-Destructed . | . . . . . . . . . . . . . . . Prevented . | . . . . . . . . . . . . . . . Kills | -11 -10 -10 -9 -9 -9 -8 -8 -8 -7 -6 -5 -4 -3 -3 ------- Run | Scr Mat Min Mat Min Exi Min Mat Sto Fac Fac Fac Fac Res Tes Combat Hostiles Destroyed 67 | . 2 15 3 4 . 6 16 16 . . . 5 . . Melee 2 | . . . . . . . . 2 . . . . . . Guns 22 | . 2 . . . . 6 7 7 . . . . . . Cannons 11 | . . . . . . . . 7 . . . 4 . . AOE 31 | . . 15 3 4 . . 9 . . . . . . . Classes Destroyed 14 | . 1 4 1 1 . 1 4 1 . . . 1 . . Worker 1 | . . . . . . . 1 . . . . . . . Builder 1 | . . . . . . . 1 . . . . . . . Tunneler 5 | . . 5 . . . . . . . . . . . . Hauler 2 | . . . . . . . . 2 . . . . . . Recycler 2 | . . 1 . . . . . 1 . . . . . . Swarmer 16 | . . . . 2 . 3 3 4 . . . 4 . . Grunt 31 | . 2 11 2 2 . 2 5 7 . . . . . . Brawler 1 | . . . 1 . . . . . . . . . . . Duelist 1 | . . . . . . 1 . . . . . . . . Sentry 11 | . . 1 . . . . 5 5 . . . . . . Specialist 2 | . . . . . . . 2 . . . . . . . Programmer 1 | . . . . . . . . . . . . 1 . . Heavy 1 | . . . . . . . 1 . . . . . . . Assembled 3 | . . 3 . . . . . . . . . . . . Best Kill Streak 8 | . 1 8 3 2 . 3 7 5 . . . 4 . . Combat Bots Only 6 | . 1 5 3 2 . 3 6 5 . . . 4 . . Max Kills in Single Turn 4 | . 1 4 2 2 . 2 3 1 . . . 1 . . Gunslinging 1 | . . . . . . 1 . . . . . . . . Exploded 3 | . . 3 2 2 . . 3 . . . . . . . Melee 1 | . . . . . . . . 1 . . . . . . Uniques/NPCs Destroyed . | . . . . . . . . . . . . . . . Combat | -11 -10 -10 -9 -9 -9 -8 -8 -8 -7 -6 -5 -4 -3 -3 -------- Run | Scr Mat Min Mat Min Exi Min Mat Sto Fac Fac Fac Fac Res Tes Damage Taken 6175 | . 79 443 182 111 . 206 890 1478 30 17 . 502 65 2172 Core 1931 | . . 151 10 25 . 37 149 138 . 17 . 93 . 1311 Absorbed by Shields 24 | . . . . . . . . . . . . 24 . . Core Remaining (%) 82 | 100 . 39 . . . 82 . 47 100 98 100 91 . . Volleys Fired 152 | . 7 25 6 5 . 13 34 49 . . . 13 . . Largest 2 | . 2 2 2 2 . 2 2 2 . . . 2 . . Hottest 114 | . 60 50 56 56 . 46 79 96 . . . 114 . . Shots Fired 267 | . 14 37 11 10 . 26 64 90 . . . 15 . . Gun 173 | . 14 12 6 6 . 26 54 55 . . . . . . Cannon 47 | . . . . . . . . 32 . . . 15 . . Launcher 47 | . . 25 5 4 . . 10 3 . . . . . . Special . | . . . . . . . . . . . . . . . Kinetic 176 | . 7 12 6 6 . 26 48 65 . . . 6 . . Thermal 40 | . 7 . . . . . 6 18 . . . 9 . . Explosive 47 | . . 25 5 4 . . 10 3 . . . . . . Electromagnetic 4 | . . . . . . . . 4 . . . . . . Robot Hit Streak 13 | . 4 6 4 4 . 5 13 8 . . . 3 . . Robot Miss Streak 4 | . 1 2 3 2 . 3 1 4 . . . 3 . . Penetration Max . | . . . . . . . . . . . . . . . Secondary Targets 2 | . . . . . . 1 . 1 . . . . . . Max Gunslinging Chain 1 | . . . . . . 1 . 1 . . . . . . Shots Hit Robots 152 | . 8 13 5 5 . 15 48 51 . . . 7 . . Core Hits 132 | . 4 31 6 5 . 10 37 33 . . . 5 . 1 Critical Kills 2 | . . . . . . . 1 . . . . 1 . . Critical Parts Destroyed 2 | . . . . 1 . . 1 . . . . . . . Critical Strikes 5 | . . . . 1 . . 2 1 . . . 1 . . Meltdown 1 | . . . . . . . . . . . . 1 . . Destroy 3 | . . . . 1 . . 2 . . . . . . . Blast 1 | . . . . . . . . 1 . . . . . . Melee Attacks 12 | . . . . . . . . 6 . . 2 4 . . Impact 12 | . . . . . . . . 6 . . 2 4 . . Slashing . | . . . . . . . . . . . . . . . Piercing . | . . . . . . . . . . . . . . . Sneak Attacks . | . . . . . . . . . . . . . . . Combat Hostiles . | . . . . . . . . . . . . . . . Follow-up Attacks . | . . . . . . . . . . . . . . . Damage Inflicted 5684 | . 86 1484 377 297 . 232 1725 1200 . . . 260 . 23 Guns 1597 | . 83 42 29 42 . 230 630 541 . . . . . . Cannons 650 | . . . . . . . . 390 . . . 260 . . Explosions 3306 | . . 1442 348 254 . . 1095 167 . . . . . . Melee . | . . . . . . . . . . . . . . . Ramming 131 | . 3 . . 1 . 2 . 102 . . . . . 23 Kinetic 1736 | . 29 42 29 42 . 230 559 720 . . . 85 . . Thermal 475 | . 54 . . . . . 71 175 . . . 175 . . Explosive 3306 | . . 1442 348 254 . . 1095 167 . . . . . . Electromagnetic 36 | . . . . . . . . 36 . . . . . . Impact . | . . . . . . . . . . . . . . . Slashing . | . . . . . . . . . . . . . . . Piercing . | . . . . . . . . . . . . . . . Highest Corruption 2 | . . . . . . . . . 2 . . . 1 2 Average Corruption 1 | . . . . . . . . . 2 . . . 1 1 Corruption Purged . | . . . . . . . . . . . . . . . Corruption Blocked . | . . . . . . . . . . . . . . . Effects 3 | . . . . . . . . . 2 . . . . 1 Message Errors 2 | . . . . . . . . . 1 . . . . 1 Matter Fused 1 | . . . . . . . . . 1 . . . . . Overload Shots . | . . . . . . . . . . . . . . . Overflow Damage 9 | . . 9 . . . . . . . . . . . . Projectiles . | . . . . . . . . . . . . . . . Explosions 9 | . . 9 . . . . . . . . . . . . Melee . | . . . . . . . . . . . . . . . Knockbacks 4 | . . . . . . . . 3 . . . 1 . . Impact . | . . . . . . . . . . . . . . . Kinetic 4 | . . . . . . . . 3 . . . 1 . . Secondary . | . . . . . . . . . . . . . . . Self-Inflicted Damage 235 | . . 221 . 3 . . . 1 . . . . . 10 Shots 8 | . . 7 . 1 . . . . . . . . . . Rammed 25 | . . . . 1 . . . 16 . . . . . 8 Targets Rammed 29 | . 1 . . 1 . 1 . 18 . . . . . 8 Kicked 2 | . 1 . . . . 1 . . . . . . . . Crushed 2 | . . . . . . . . 2 . . . . . . Highest Temperature 395 | . 64 45 24 24 . 17 66 395 1 . 5 108 . 2 Average Temperature 88 | . 34 18 9 8 . 10 21 145 1 . 5 43 . 2 Received Heat Transfer 1539 | . 42 105 57 39 . 27 243 720 9 . . 27 9 261 Effects 6 | . . . . . . . . 6 . . . . . . Shutdowns 1 | . . . . . . . . 1 . . . . . . Energy Bleed 2 | . . . . . . . . 2 . . . . . . Interference 2 | . . . . . . . . 2 . . . . . . Short Circuit 1 | . . . . . . . . 1 . . . . . . Siege Activations . | . . . . . . . . . . . . . . . Robots Corrupted . | . . . . . . . . . . . . . . . Combat Hostiles . | . . . . . . . . . . . . . . . Parts Fried . | . . . . . . . . . . . . . . . Impact Corruptions . | . . . . . . . . . . . . . . . Robots Melted 1 | . . . . . . . . . . . . 1 . . Combat Hostiles 1 | . . . . . . . . . . . . 1 . . Parts Melted 2 | . . . . . . . . . . . . 2 . . Heat Transferred 939 | . 125 . . . . . 185 444 . . . 185 . . Parts Sabotaged . | . . . . . . . . . . . . . . . Parts Stolen . | . . . . . . . . . . . . . . . Parts Stripped . | . . . . . . . . . . . . . . . Power Chain Reactions . | . . . . . . . . . . . . . . . Missiles Intercepted . | . . . . . . . . . . . . . . . Alert | -11 -10 -10 -9 -9 -9 -8 -8 -8 -7 -6 -5 -4 -3 -3 ------- Run | Scr Mat Min Mat Min Exi Min Mat Sto Fac Fac Fac Fac Res Tes Peak Influence 1850 | . 140 651 584 461 . 145 421 537 249 140 87 462 502 1850 Initial 299 | . . 54 228 227 . . . 177 189 121 68 42 242 299 Average 325 | . 98 488 414 385 . 62 92 351 208 126 77 147 327 1669 Maximum Alert Level 5 | . . 2 2 2 . . 2 2 1 . . 2 2 5 Low Security (%) 45 | . 100 6 . . . 100 82 18 30 100 100 70 . . Level 1 26 | . . 18 51 68 . . 12 47 69 . . 20 75 . Level 2 22 | . . 75 48 31 . . 5 34 . . . 9 24 . Level 3 . | . . . . . . . . . . . . . . . Level 4 . | . . . . . . . . . . . . . . . Level 5 . | . . . . . . . . . . . . . . . High Security . | . . . . . . . . . . . . . . . Max Security 5 | . . . . . . . . . . . . . . 99 Squads Dispatched 24 | . 1 . 1 . . . 3 3 . . . 1 3 12 Investigation 4 | . . . 1 . . . 1 1 . . . 1 . . Extermination . | . . . . . . . . . . . . . . . Reinforcement 8 | . 1 . . . . . 2 2 . . . . 3 . Assault 12 | . . . . . . . . . . . . . . 12 Garrison . | . . . . . . . . . . . . . . . Intercept . | . . . . . . . . . . . . . . . Searches Triggered . | . . . . . . . . . . . . . . . Construction Impeded 2 | . . . . . . . . 2 . . . . . . Haulers Reinforced . | . . . . . . . . . . . . . . . Active Scanning Responses . | . . . . . . . . . . . . . . . Cargo Convoy Interrupts . | . . . . . . . . . . . . . . . Stealth | -11 -10 -10 -9 -9 -9 -8 -8 -8 -7 -6 -5 -4 -3 -3 --------- Run | Scr Mat Min Mat Min Exi Min Mat Sto Fac Fac Fac Fac Res Tes Distress Signals 7 | . . . 1 . . . 2 2 . . . 1 1 . Communications Jammed . | . . . . . . . . . . . . . . . Distress Signals . | . . . . . . . . . . . . . . . Times Spotted 235 | . 8 15 12 6 . 7 22 29 4 1 . 30 16 85 Peak Tracking Total 54 | . 2 3 3 3 . 3 6 5 5 1 . 13 12 54 Tactical Retreats 20 | . 1 . . 1 . 1 . 2 3 . . 4 4 4 Traps | -11 -10 -10 -9 -9 -9 -8 -8 -8 -7 -6 -5 -4 -3 -3 ------- Run | Scr Mat Min Mat Min Exi Min Mat Sto Fac Fac Fac Fac Res Tes Traps Triggered 11 | . . . 1 . . . . 1 2 1 . 3 2 1 Indirectly . | . . . . . . . . . . . . . . . Trap Hack Attempts . | . . . . . . . . . . . . . . . Triggered . | . . . . . . . . . . . . . . . Disarmed . | . . . . . . . . . . . . . . . Reprogrammed 4 | . 4 . . . . . . . . . . . . . Reused . | . . . . . . . . . . . . . . . Traps Extracted . | . . . . . . . . . . . . . . . Installed . | . . . . . . . . . . . . . . . Triggered . | . . . . . . . . . . . . . . . Machines | -11 -10 -10 -9 -9 -9 -8 -8 -8 -7 -6 -5 -4 -3 -3 ---------- Run | Scr Mat Min Mat Min Exi Min Mat Sto Fac Fac Fac Fac Res Tes Machines Disabled 10 | . . 2 2 . . . 4 2 . . . . . . Max in Single Turn 2 | . . 2 1 . . . 2 1 . . . . . . Garrison Access 1 | . . . . . . . . . . . . 1 . . Machines Sabotaged . | . . . . . . . . . . . . . . . Garrisons Compromised . | . . . . . . . . . . . . . . . Overloaded Fab Kills . | . . . . . . . . . . . . . . . Hacking | -11 -10 -10 -9 -9 -9 -8 -8 -8 -7 -6 -5 -4 -3 -3 --------- Run | Scr Mat Min Mat Min Exi Min Mat Sto Fac Fac Fac Fac Res Tes Machines Accessed 21 | . 1 . 2 . 1 . 2 4 2 2 1 4 2 . Terminals 18 | . 1 . 2 . . . 2 4 2 1 1 3 2 . Fabricators . | . . . . . . . . . . . . . . . Repair Stations . | . . . . . . . . . . . . . . . Recycling Units 1 | . . . . . . . . . . 1 . . . . Scanalyzers . | . . . . . . . . . . . . . . . Garrison Access 1 | . . . . . . . . . . . . 1 . . Total Hacks 50 | . 8 . 4 . 1 . 6 9 3 6 1 9 3 . Successful 25 | . 5 . 1 . 1 . 3 6 2 2 1 2 2 . Failed 25 | . 3 . 3 . . . 3 3 1 4 . 7 1 . Catastrophic 3 | . . . 1 . . . 1 . . . . 1 . . Database Lockouts . | . . . . . . . . . . . . . . . Manual 13 | . 1 . 3 . 1 . 1 1 . . . 5 1 . Terminals 44 | . 8 . 4 . . . 6 9 3 4 1 6 3 . Fabricators . | . . . . . . . . . . . . . . . Repair Stations . | . . . . . . . . . . . . . . . Recycling Units 2 | . . . . . . . . . . 2 . . . . Scanalyzers . | . . . . . . . . . . . . . . . Garrison Access 3 | . . . . . . . . . . . . 3 . . Terminal Hacks 21 | . 5 . 1 . 1 . 3 6 2 1 1 . 1 . Record 1 | . . . . . . . . . . . . . 1 . Robot Analysis 1 | . . . 1 . . . . . . . . . . . Prototype ID Bank 1 | . . . . . . . 1 . . . . . . . Open Door 1 | . . . . . . . . 1 . . . . . . Open DSF 1 | . . . . . . . . . 1 . . . . . Branch Access Points 2 | . 1 . . . . . . . . . 1 . . . Emergency Access Points 1 | . . . . . . . . . 1 . . . . . Alert Level 1 | . . . . . . . . 1 . . . . . . Unreport Threat 2 | . . . . . . . 1 1 . . . . . . Locate Traps 1 | . 1 . . . . . . . . . . . . . Reprogram Traps 2 | . 2 . . . . . . . . . . . . . Hauler Manifests 1 | . . . . . . . . 1 . . . . . . Registered Prototypes 1 | . . . . . . . . 1 . . . . . . Zone Layout 4 | . 1 . . . . . 1 1 . 1 . . . . EX-Prototype ID Bank 1 | . . . . . 1 . . . . . . . . . Fabricator Hacks . | . . . . . . . . . . . . . . . Repair Station Hacks . | . . . . . . . . . . . . . . . Recycling Unit Hacks 1 | . . . . . . . . . . 1 . . . . Retrieve Matter 1 | . . . . . . . . . . 1 . . . . Scanalyzer . | . . . . . . . . . . . . . . . Garrison Access Hacks 1 | . . . . . . . . . . . . 1 . . Seal Access 1 | . . . . . . . . . . . . 1 . . Unauthorized Hacks 2 | . . . . . . . . . . . . 1 1 . Terminals 2 | . . . . . . . . . . . . 1 1 . Assimilate 1 | . . . . . . . . . . . . . 1 . Sabotage 1 | . . . . . . . . . . . . 1 . . Fabricators . | . . . . . . . . . . . . . . . Repair Stations . | . . . . . . . . . . . . . . . Recycling Units . | . . . . . . . . . . . . . . . Scanalyzers . | . . . . . . . . . . . . . . . Garrison Access . | . . . . . . . . . . . . . . . Data Cores Recovered . | . . . . . . . . . . . . . . . Used . | . . . . . . . . . . . . . . . Hacking Detections 18 | . 1 . 2 . . . 1 4 2 2 . 4 2 . Full Trace Events 2 | . . . . . . . 1 1 . . . . . . Feedback Events . | . . . . . . . . . . . . . . . Feedback Blocked . | . . . . . . . . . . . . . . . Robot Schematics Acquired . | . . . . . . . . . . . . . . . Robots Built . | . . . . . . . . . . . . . . . Authchips . | . . . . . . . . . . . . . . . Time . | . . . . . . . . . . . . . . . Total Robot Build Rating . | . . . . . . . . . . . . . . . Part Schematics Acquired . | . . . . . . . . . . . . . . . Parts Built . | . . . . . . . . . . . . . . . Authchips . | . . . . . . . . . . . . . . . Time . | . . . . . . . . . . . . . . . Total Part Build Rating . | . . . . . . . . . . . . . . . Parts Repaired . | . . . . . . . . . . . . . . . Time . | . . . . . . . . . . . . . . . Parts Recycled . | . . . . . . . . . . . . . . . Recycled Matter . | . . . . . . . . . . . . . . . Retrieved Matter . | . . . . . . . . . . . . . . . Retrieved Components . | . . . . . . . . . . . . . . . Parts Scanalyzed . | . . . . . . . . . . . . . . . Part Schematics Acquired . | . . . . . . . . . . . . . . . Parts Damaged . | . . . . . . . . . . . . . . . Bothacking | -11 -10 -10 -9 -9 -9 -8 -8 -8 -7 -6 -5 -4 -3 -3 ------------ Run | Scr Mat Min Mat Min Exi Min Mat Sto Fac Fac Fac Fac Res Tes Used RIF Installer . | . . . . . . . . . . . . . . . Robots Hacked . | . . . . . . . . . . . . . . . Non-combat . | . . . . . . . . . . . . . . . Combat . | . . . . . . . . . . . . . . . Robot Hacks Applied . | . . . . . . . . . . . . . . . Relay Couplers Released . | . . . . . . . . . . . . . . . Fabnet Peak Effective % . | . . . . . . . . . . . . . . . Robots Rewired . | . . . . . . . . . . . . . . . Allies Hacked . | . . . . . . . . . . . . . . . Hacks Repelled . | . . . . . . . . . . . . . . . Allies | -11 -10 -10 -9 -9 -9 -8 -8 -8 -7 -6 -5 -4 -3 -3 -------- Run | Scr Mat Min Mat Min Exi Min Mat Sto Fac Fac Fac Fac Res Tes Total Allies 4 | . . 3 . . . . . . . . . . 1 . Largest Group 3 | . . 3 3 2 . . . . . . . . 1 . Highest-Rated Group 40 | . . 40 40 32 . . . . . . . . 23 . Highest-Rated Ally 23 | . . 16 16 16 . . . . . . . . 23 . Total Orders . | . . . . . . . . . . . . . . . Ally Attacks 49 | . . 9 29 11 . . . . . . . . . . Total Damage 495 | . . 114 286 95 . . . . . . . . . . Kills 10 | . . 2 7 1 . . . . . . . . . . Allies Corrupted . | . . . . . . . . . . . . . . . Allies Melted . | . . . . . . . . . . . . . . . Intel | -11 -10 -10 -9 -9 -9 -8 -8 -8 -7 -6 -5 -4 -3 -3 ------- Run | Scr Mat Min Mat Min Exi Min Mat Sto Fac Fac Fac Fac Res Tes Robot Analysis Total 1 | . . . 1 . . . . . . . . . . . Derelict Logs Recovered 3 | . . 2 . 1 . . . . . . . . . . Drone Launches . | . . . . . . . . . . . . . . . Drone Recoveries . | . . . . . . . . . . . . . . . Exploration | -11 -10 -10 -9 -9 -9 -8 -8 -8 -7 -6 -5 -4 -3 -3 ------------- Run | Scr Mat Min Mat Min Exi Min Mat Sto Fac Fac Fac Fac Res Tes Turns Passed 5211 | . 328 571 283 351 451 613 627 746 135 113 174 321 229 269 Spaces Moved 6135 | 1 226 403 153 203 281 333 364 515 415 250 515 876 707 893 Core 4 | . . . . . . . . . . . . . . 4 Treads 1017 | . . . 118 203 281 188 121 106 . . . . . . Legs 1053 | 1 226 403 35 . . 145 243 . . . . . . . Wheels . | . . . . . . . . . . . . . . . Hover 249 | . . . . . . . . 243 . . . . . 6 Flight 3812 | . . . . . . . . 166 415 250 515 876 707 883 Fastest Speed 22 | 120 120 120 120 160 160 110 110 29 26 27 24 22 22 22 Average Speed 65 | 120 120 120 151 160 160 148 124 87 26 27 25 22 22 25 Slowest Speed 240 | 120 120 190 240 160 160 185 240 160 26 27 26 22 22 96 Overloaded Moves . | . . . . . . . . . . . . . . . Propulsion Burnouts . | . . . . . . . . . . . . . . . Robots Hopped 27 | . . . . . . . . 4 2 . 2 4 3 12 Cave-ins Triggered . | . . . . . . . . . . . . . . . Exploration Rate (%) 35 | 2 29 71 21 51 61 69 31 52 15 8 9 18 25 73 Regions Visited 14 Branch Regions 6 Pre-discovered Areas . | . . . . . . . . . . . . . . . Known Exits Taken 3 | . 1 . . . . 1 1 . . . . . . . Unknown Exits Taken 11 | 1 . 1 1 1 1 . . 1 1 1 1 1 1 . Scrap Searched 6 | . . 2 . 1 . 3 . . . . . . . . Spaces Dug 12 | . . . . . . . . 3 . . 2 7 . . Terrain Destroyed 340 | . . 185 17 50 . . 37 38 . . 2 11 . . Melee 7 | . . . . . . . . 1 . . 2 4 . . Projectile 20 | . . . . . . . . 13 . . . 7 . . AOE 313 | . . 185 17 50 . . 37 24 . . . . . . Terrain Rammed . | . . . . . . . . . . . . . . . Walls Destroyed . | . . . . . . . . . . . . . . . Machines Disabled . | . . . . . . . . . . . . . . . Actions | -11 -10 -10 -9 -9 -9 -8 -8 -8 -7 -6 -5 -4 -3 -3 --------- Run | Scr Mat Min Mat Min Exi Min Mat Sto Fac Fac Fac Fac Res Tes Total 7000 | . 272 459 194 218 283 428 476 697 437 295 554 978 783 926 Wait 218 | . 23 . 14 4 . 60 24 59 2 1 14 1 6 10 Move 6066 | . 225 402 152 202 280 332 363 506 410 249 510 867 698 870 Hop 26 | . . . . . . . . 4 2 . 2 4 3 11 Pick Up 141 | . 6 5 5 2 2 6 10 29 13 11 12 15 18 7 Fast Attach 29 | . 1 4 4 . . 3 12 1 1 . . 2 . 1 Attach 41 | . . 1 2 . . . 3 8 2 3 4 6 4 8 Detach 11 | . . 1 . . . 1 . . 2 1 1 1 3 1 Swap 68 | . 3 9 3 3 . 3 8 9 5 7 4 9 5 . Drop 114 | . 6 12 8 1 1 9 22 8 . 5 5 11 16 10 Fire 152 | . 7 25 6 5 . 13 34 49 . . . 13 . . Melee 12 | . . . . . . . . 6 . . 2 4 . . Ram 9 | . . . . . . . . 1 . . . . . 8 Kick 2 | . 1 . . . . 1 . . . . . . . . Crush 18 | . . . . 1 . . . 17 . . . . . . Escape Stasis 93 | . . . . . . . . . . 18 . 45 30 . Rewire . | . . . . . . . . . . . . . . . Trap . | . . . . . . . . . . . . . . . Miscellaneous . | . . . . . . . . . . . . . . . Route ------- -11/Scrapyard -10/Materials (discovered 2 exits: *Min x2) -10/Mines -9/Materials (discovered 2 exits: Mat / [*Min]) -9/Mines (discovered 2 exits: *Mat / *Exi) -9/Exiles -8/Mines -8/Materials (discovered 2 exits: *Fac / *Sto) -8/Storage -7/Factory -6/Factory -5/Factory (discovered 3 exits: *Fac / Upp x2) -4/Factory -3/Research -3/Testing History --------- Turn | Location | Event 1 | -11/Scrapyard | Discovered new exit (range 0) 1 | -11/Scrapyard | Entered Materials 82 | -10/Materials | Discovered new exit (range 16) 294 | -10/Materials | Discovered new exit (range 16) 294 | -10/Materials | Identified exit to Mines 317 | -10/Materials | Build established: Mutant 329 | -10/Materials | Entered Mines 415 | -10/Mines | Excavation squad dispatched 415 | -10/Mines | A large section of the Mines collapsed 423 | -10/Mines | Core integrity fell below 50% 534 | -10/Mines | Assisted by bots powering up and referring to "LRC-V3" 573 | -10/Mines | Learned location of 1 exit from Materials 665 | -10/Mines | Excavation squad dispatched 810 | -10/Mines | Learned Materials trap positions 811 | -10/Mines | Received a Rocket Launcher from a helpful Derelict 868 | -10/Mines | Discovered new exit (range 10) 900 | -10/Mines | Entered Materials 900 | -9/Materials | Accompanied by 3 allies 900 | -9/Materials | Evolved 2 slots: Propulsion x1, Utility x1 901 | -9/Materials | Identified exit to Materials 902 | -9/Materials | Loaded intel: 25 trap records 1167 | -9/Materials | Discovered new exit (range 9) 1183 | -9/Materials | Entered Mines 1183 | -9/Mines | Accompanied by 2 allies 1359 | -9/Mines | Discovered exit to Materials (range 9) 1393 | -9/Mines | Learned location of 1 exit from Materials 1524 | -9/Mines | Deemed a non-threat by the Exiles lab entrance 1524 | -9/Mines | Discovered new exit (range 6) 1534 | -9/Mines | Entered Exiles 1574 | -9/Exiles | Met 8R-AWN 1600 | -9/Exiles | Met EX-HEX 1656 | -9/Exiles | Met EX-BIN 1742 | -9/Exiles | Aligned with FarCom system 1744 | -9/Exiles | Given EX-Vault access code 1781 | -9/Exiles | Opened EX-Vault 1805 | -9/Exiles | Found Lightpack 2.0 1859 | -9/Exiles | Warned to stay clear of 0b10 Research branches 1902 | -9/Exiles | Met EX-DEC 1966 | -9/Exiles | Discovered new exit (range 14) 1985 | -9/Exiles | Left Exiles lab with Lightpack 2.0 1985 | -9/Exiles | Entered Mines 2590 | -8/Mines | Discovered exit to Materials (range 8) 2598 | -8/Mines | Entered Materials 2598 | -8/Materials | Evolved 2 slots: Propulsion x1, Utility x1 2599 | -8/Materials | Identified exit to Storage 2901 | -8/Materials | Discovered new exit (range 8) 3225 | -8/Materials | Entered Storage 3259 | -8/Storage | Build established: Scavenger-Mutant 3836 | -8/Storage | Build established: Hauler-Mutant 3951 | -8/Storage | Core integrity fell below 50% 3956 | -8/Storage | Discovered new exit (range 16) 3971 | -8/Storage | Entered Factory 3971 | -7/Factory | Evolved 2 slots: Utility x2 4082 | -7/Factory | Discovered new exit (range 13) 4106 | -7/Factory | Entered another Factory area 4106 | -6/Factory | Evolved 2 slots: Power x1, Utility x1 4211 | -6/Factory | Discovered new exit (range 16) 4219 | -6/Factory | Entered another Factory area 4219 | -5/Factory | Evolved 2 slots: Propulsion x1, Utility x1 4257 | -5/Factory | Discovered new exit (range 5) 4348 | -5/Factory | Identified exit to Upper Caves 4393 | -5/Factory | Entered another Factory area 4393 | -4/Factory | Evolved 2 slots: Propulsion x1, Utility x1 4454 | -4/Factory | Found Quantum Capacitor 4703 | -4/Factory | Discovered new exit (range 15) 4714 | -4/Factory | Entered Research 4714 | -3/Research | Evolved 2 slots: Utility x2 4901 | -3/Research | Found Prototype Processor 4912 | -3/Research | Build established: Hauler-Sprinter 4939 | -3/Research | Discovered new exit (range 6) 4943 | -3/Research | Entered Testing 4943 | -3/Testing | Spotted PX-9V4RQR4T7T 4944 | -3/Testing | Maximum security lockdown engaged 4994 | -3/Testing | Found Imp. Powered Armor 4996 | -3/Testing | Spotted Striker 5088 | -3/Testing | Spotted Striker 5091 | -3/Testing | Spotted Alpha 7 5093 | -3/Testing | Stole the SGEMP Prototype 5156 | -3/Testing | Lost 10 parts (1p3n6u) 5203 | -3/Testing | Released all parts (8) 5209 | -3/Testing | Core integrity fell below 50% 5212 | -3/Testing | Core integrity fell below 20% 5212 | -3/Testing | Destroyed by G-67 Veteran with Field Laser Last Messages --------------- 05208_ G-73 Enforcer unfolds itself. 05208_ B-74 Champion unfolds itself. 05208_ Slammed into G-73 Enforcer. 05209_ Penetrated by Slug. 05209_ Slug penetrates Wall. 05209_ C-30 ARC bursts open, deploying its payload. 05209_ G-73 Enforcer unfolds itself. 05209_ G-67 Veteran unfolds itself. 05209_ I-47 Archangel unfolds itself. 05209_ Slammed into G-73 Enforcer. 05210_ Slammed into B-74 Champion. 05210_ C-30 ARC bursts open, deploying its payload. 05210_ H-77 Assassin unfolds itself. 05210_ P-80 Master unfolds itself. 05210_ E-15 Imp unfolds itself. 05211_ Slammed into G-73 Enforcer. 05212_ Penetrated by Slug. 05212_ Slug penetrates B-74 Champion. 05212_ Slammed into G-73 Enforcer. [Achievement: Tester] Map ----- +----------------------------------------------------+ | """ # ! ## """ # # """ ###### """ # | | #### ^""" ##+### + / / / """ # | | ???# """ + # ##+###/###### """ # | | ???# ######### #?# #????# """ # | | ##?# = "" #???????# #?# #????# """ # | | ### "F"" * #???????# ### ##???# # | | + """" ! #???????# ##! #???# # | | #### " #???????# #???#####+#### | | #??# "%" #???????####### #????# + | | #??## " ###### ##???#######??## ##????# # | | #???# #???# Y##### #???# #?????# + | | #???# #???# ##### #?????# # | | #???# #???# C #???######+##+# | | #?### ###?# w C#######???# # | | +### #?# ##### * #?????????# # | | #?### ###???###b###?????????# # | | #???#7#???????# #??????###### # | | " #???# #?????###o###????# + """" # | | "%" #####+#####?# % h #????# #?# """" # | | "%" + #?#hT"bi###### #?# """" # | | ## " # ! #?#gg"g g%" #?# """" # | | ########## #?#Yplg%### #?#+#####/### | | #????? # #?#Ylelg#?# #?# #???# #?? | | #??? ###########?##eYg####+# #?# #???# #? | | #???" #??#!! i #####gl%# # #?# #???# #?" | | #?? #??#!]!g[&g gY@bm# l # ### #???# # " | | #?""" [ #??#=!]!hig bggl%gl # ##### # " | | # " =#??#!!!pm]gsgegb%# + + | | # """ ???#==*/b######### # # | | + """ ???##=]e##?#######g # """ [ ### | | # """ #???#!h]#??# # # """ | | + #???#!!=#??# # # """ | | # """ #???#=! #### # ! # "" "" | | # """ #???# + ###### ""T"" | | #? """ ######+###+#######????# """ | | #? ?# == #?????????############ " | | #?? """ # == #????????????????????# " | | #?? """ # #????????????????????# " | | #???""" # #????????????????????+ " | | #??? ??# """ """ #????????????????????# | | #????#???# """S""" #????????????????????? | | #????????# #?????????????????????## | | # #????????#############??????????????????????? ? | | # #??????????????????????????????????????????????? | | # #######????????????????????????????????????????? | | # #????????????????????????????????????????? | | # ##### #????????????????????????????????????????? | | # #???# #????????????????????????????????????????? | | # #???# #????????????????????????????????????????? | | # #???# #????????????????????????????????????????? | +----------------------------------------------------+ Best States ------------- Heat Dissipation 84 Energy Generation 48 Energy Capacity 525 Matter Stores 300 Matter Capacity 300 Sight Range 18 Robot Scan Range 16 Terrain Scan Density 10 Cloak Strength 3 Power Amplification 20 Additional Mass Support 12 Armor Coverage 600 Point Defense Rating 160 Phase Shifting 10 Evasion (%) 87 Recoil Reduction 4 Offensive Hacking 10 Item Schematics ----------------- None Robot Schematics ------------------ None Fabricated ------------ Nothing Alien Tech Used ----------------- None Achievements -------------- Packrat Tester Challenges ------------ None Game ------ Seed DisposableNavigationLeg Manual? 0 Play Time 01:52:40 Cumulative 97.9 hours Start 2022.04.23 @ 21:34:08 End 2022.04.27 @ 00:43:57 Sessions 2 Manual Loads 0 Difficulty Rogue Special Mode None Game No. 122 Rogue 122 Adventurer 0 Explorer 0 Win Type - Total 0 Types 0/0/0/0/0/0/0/0/0 Lore% 53 Gallery% 50 Achievement% 43 Wizard Run 0 Options --------- ASCII 1 Keyboard 0 Movement Vi Keybinds 0 Fullscreen 1 Font 18/SmallcapsGlow Map View 76x50 Tactical HUD 1 Map Filters NONE Filters NONE Steam 1 RUN: aaafc08e-be8d-49fc-8496-d0fb6a7d7f2b